Cogmind - Beta 9.4 @@@ ROGUE MODE // 2020.02.16 @ 17:46:57 Player: PlasticHeart Result: Destroyed by Z-Imprinter with Zionite Laser-M Performance ------------- Evolutions (4) 2000 Regions Visited (17) 3400 Robots Destroyed (128) 640 Value Destroyed (2811) 2811 Prototype IDs (28) 560 Alien Tech Used (1) 200 Bonus (972) 972 TOTAL SCORE: 10583 Bonus ------- High Alert Combat Kills 162 Follower Combat Kills 225 Met Data Miner 300 Met Imprinter 300 Friendly Fire -15 Cogmind --------- Core Integrity 0/850 Matter 128/300 Energy 100/100 System Corruption 0% Temperature Cool (18) Movement Core (50) Location -6/Deep Caves Parts ------- > --- POWER (1) -------- (None) > --- PROPULSION (2) --- (None) > --- UTILITY (10) ----- Enhanced Optical Array Advanced Signal Interpreter Hacking Suite Makeshift Hacking Suite System Shield > --- WEAPON (3) ------- (None) > --- INVENTORY (4) ---- (None) Peak State ------------ > --- POWER ------------ Micro Nuclear Core > --- PROPULSION ------- Improved VTOL Module Experimental Cesium-ion Thruster > --- UTILITY ---------- Enhanced Optical Array Experimental Sensor Array Advanced Signal Interpreter Hacking Suite Hacking Suite Makeshift Hacking Suite Improved Hacking Suite Improved Hacking Suite System Shield Makeshift System Shield > --- WEAPON ----------- Improved Plasma Cutter Molecular Deconstructor > --- INVENTORY -------- Micro Nuclear Core Shock Bomb Launcher [Rating: 79] Favorites ----------- Power Micro Nuclear Core Engine Ion Engine Power Core Micro Nuclear Core Propulsion Improved VTOL Module Treads Light Treads Leg Aluminum Leg Wheel Wheel Flight Unit Improved VTOL Module Utility Hacking Suite Device Advanced Weight Redist. System Storage Large Storage Unit Processor Enhanced Optical Array Hackware Hacking Suite Protection Medium Reactive Plating Weapon Scythe Energy Gun EM Pulse Gun Energy Cannon Ion Cannon Ballistic Gun Heavy Assault Rifle Ballistic Cannon Improved Light Cannon Launcher Grenade Launcher Special Weapon Improved Plasma Cutter Impact Weapon Powered Hammer Slashing Weapon Scythe Special Melee Weapon Datajack Build | -11 -10 -9 -8 -7 -7 -7 -7 -7 -7 -6 -6 -6 -6 -6 -6 -6 -6 ------- Run | Scr Mat Mat Mat Fac Was Fac Low Low Dat Pro Fac Was Fac Low Low Zio Dee Slots Evolved 8 | . . 2 2 2 . . . . . . 2 . . . . . . Power . | . . . . . . . . . . . . . . . . . . Propulsion . | . . . . . . . . . . . . . . . . . . Utility 8 | . . 2 2 2 . . . . . . 2 . . . . . . Weapon . | . . . . . . . . . . . . . . . . . . Parts Attached 143 | 7 7 28 37 13 . 12 . . . . 4 . 5 4 8 9 9 Power 18 | 1 2 6 4 1 . 1 . . . . 2 . . . . . 1 Engine 10 | 1 2 6 1 . . . . . . . . . . . . . . Core 8 | . . . 3 1 . 1 . . . . 2 . . . . . 1 Reactor . | . . . . . . . . . . . . . . . . . . Propulsion 25 | 2 1 9 6 4 . 1 . . . . . . 2 . . . . Treads 4 | . . 4 . . . . . . . . . . . . . . . Leg 3 | 2 1 . . . . . . . . . . . . . . . . Wheel 11 | . . 5 6 . . . . . . . . . . . . . . Hover . | . . . . . . . . . . . . . . . . . . Flight 7 | . . . . 4 . 1 . . . . . . 2 . . . . Utility 40 | 1 2 3 8 5 . 9 . . . . 2 . 3 3 4 . . Device 11 | . . . . 5 . 1 . . . . . . 1 2 2 . . Storage 10 | 1 2 3 4 . . . . . . . . . . . . . . Processor 5 | . . . . . . 4 . . . . . . . . 1 . . Hackware 10 | . . . . . . 4 . . . . 2 . 2 1 1 . . Protection 4 | . . . 4 . . . . . . . . . . . . . . Artifact . | . . . . . . . . . . . . . . . . . . Weapon 60 | 3 2 10 19 3 . 1 . . . . . . . 1 4 9 8 Energy Gun 3 | 1 1 . 1 . . . . . . . . . . . . . . Energy Cannon 5 | . . 2 3 . . . . . . . . . . . . . . Ballistic Gun 12 | 2 . 5 5 . . . . . . . . . . . . . . Ballistic Cannon 4 | . . 1 3 . . . . . . . . . . . . . . Launcher 10 | . 1 2 4 . . . . . . . . . . . . . 3 Special Weapon 14 | . . . 3 . . . . . . . . . . 1 2 6 2 Impact Weapon 1 | . . . . 1 . . . . . . . . . . . . . Slashing Weapon 7 | . . . . 2 . . . . . . . . . . 2 1 2 Piercing Weapon . | . . . . . . . . . . . . . . . . . . Special Melee Weapon 4 | . . . . . . 1 . . . . . . . . . 2 1 Unidentified Prototypes 5 | . . . 2 1 . . . . . . . . . 1 1 . . Parts Lost 37 | . 3 9 14 . . . . . . . . . . . . . 11 Power 9 | . 2 1 4 . . . . . . . . . . . . . 2 Propulsion 9 | . . 3 4 . . . . . . . . . . . . . 2 Utility 7 | . . . 2 . . . . . . . . . . . . . 5 Weapon 12 | . 1 5 4 . . . . . . . . . . . . . 2 Highest Loss Streak 11 | . 2 3 5 . . . . . . . . . . . . . 11 Average Slot Usage (%) 94 | . 98 99 89 60 61 84 100 100 100 100 93 100 100 99 99 98 89 Engine 4 | . 13 10 5 . . . . . . . . . . . . . . Core 3 | . . . 1 7 7 7 7 7 7 7 6 6 6 6 6 6 5 Treads 1 | . . 7 . . . . . . . . . . . . . . . Leg 3 | . 28 . . . . . . . . . . . . . . . . Wheel 5 | . . 13 16 . . . . . . . . . . . . . . Flight 6 | . . . . 13 15 15 15 15 15 15 13 13 13 12 12 12 10 Device 6 | . . . . 29 30 27 15 15 15 15 13 13 6 6 5 6 5 Storage 18 | . 26 43 36 1 . . . . . . . . . . . . . Processor 5 | . . . . . . 11 15 15 15 15 13 13 13 12 12 12 12 Hackware 15 | . . . . . . 13 30 30 30 30 33 40 45 45 43 43 40 Protection 2 | . . . 11 . . . . . . . . . . . . . . Energy Gun 1 | . 10 2 . . . . . . . . . . . . . . . Ballistic Gun 7 | . 17 17 9 . . . . . . . . . . . . . . Slashing Weapon 3 | . . . . 6 7 7 7 7 7 7 6 6 6 6 5 5 4 Special Melee Weapon 2 | . . . . . . . 7 7 7 7 6 6 6 6 6 5 4 Naked Turns . | . . . . . . . . . . . . . . . . . . Heaviest Build 104 | 10 40 61 104 9 9 11 11 11 11 11 11 11 11 12 12 12 13 Greatest Support 43 | 20 20 43 32 21 12 12 12 12 12 12 21 12 13 13 13 13 13 Greatest Overweight (x) 8 | 2 1 3 8 . . . . . . . . . . . . . 4 Average Overweight (x) . | . . 1 3 . . . . . . . . . . . . . . Largest Inventory Capacity 24 | 6 16 24 24 24 4 4 4 4 4 4 4 4 4 4 4 4 4 Average Capacity 13 | 5 15 23 24 5 4 4 4 4 4 4 4 4 4 4 4 4 4 Most Carried 24 | 4 10 16 24 23 4 4 4 4 4 4 4 4 4 4 4 4 4 Average Carried 9 | 2 7 10 22 4 4 3 4 4 4 4 4 4 3 3 3 3 3 Final Capacity 24 | 6 16 24 24 4 4 4 4 4 4 4 4 4 4 4 4 4 4 Final Carried 23 | 2 10 16 23 4 4 4 4 4 4 4 4 4 4 4 4 4 . Class Distribution -------------------- 38% | Hauler-Mutant 21% | Wizard-Scout 18% | Hacker-Scout 13% | Mutant 4% | Sprinter Dominant Class ---------------- Mutant | -10/Materials Hauler-Mutant | -9/Materials Hauler-Mutant | -8/Materials Sprinter | -7/Factory Sprinter | -7/Waste Hacker-Scout | -7/Factory Hacker-Scout | -7/Lower Caves Hacker-Scout | -7/Lower Caves Hacker-Scout | -7/Data Miner Hacker-Scout | -6/Proximity Caves Hacker-Scout | -6/Factory Wizard-Scout | -6/Waste Wizard-Scout | -6/Factory Wizard-Scout | -6/Lower Caves Wizard-Scout | -6/Lower Caves Wizard-Scout | -6/Zion Wizard-Scout | -6/Deep Caves Resources | -11 -10 -9 -8 -7 -7 -7 -7 -7 -7 -6 -6 -6 -6 -6 -6 -6 -6 ----------- Run | Scr Mat Mat Mat Fac Was Fac Low Low Dat Pro Fac Was Fac Low Low Zio Dee Matter Collected 3205 | 141 287 950 1196 99 . 181 8 25 . 29 40 . 96 . 85 61 7 Remotely . | . . . . . . . . . . . . . . . . . . Salvage Created 4274 | . 262 1522 1662 99 . 267 . 73 . 73 136 . 128 . 52 . . Parts 288 | . 20 112 108 3 . 24 . . . 6 7 . 8 . . . . Haulers Intercepted 12 | . 1 5 4 1 . 1 . . . . . . . . . . . Recyclers Shooed 10 | . . 2 6 . . 1 . . . . 1 . . . . . . Parts Field Recycled . | . . . . . . . . . . . . . . . . . . Retrieved Matter . | . . . . . . . . . . . . . . . . . . Parts Self-Destructed 38 | . . . . . . . . . . 33 . . . 5 . . . Prevented 5 | . . . . . . . . 1 . 2 . . . 2 . . . Kills | -11 -10 -9 -8 -7 -7 -7 -7 -7 -7 -6 -6 -6 -6 -6 -6 -6 -6 ------- Run | Scr Mat Mat Mat Fac Was Fac Low Low Dat Pro Fac Was Fac Low Low Zio Dee Combat Hostiles Destroyed 68 | . 5 26 37 . . . . . . . . . . . . . . Guns 33 | . 3 21 9 . . . . . . . . . . . . . . Cannons 17 | . . 2 15 . . . . . . . . . . . . . . AOE 18 | . 2 3 13 . . . . . . . . . . . . . . Classes Destroyed 12 | . 4 6 . 1 . . . . . . . . . . 1 . . Worker 15 | . 1 6 5 . . 1 . . . . . . 2 . . . . Builder 5 | . 1 2 2 . . . . . . . . . . . . . . Tunneler 2 | . . . . 2 . . . . . . . . . . . . . Hauler 12 | . 1 5 4 1 . 1 . . . . . . . . . . . Recycler 5 | . . 2 2 . . . . . . . 1 . . . . . . Operator 5 | . . 1 1 . . 2 . . . . . . 1 . . . . Watcher 14 | . . 2 3 . . 5 . . . 2 1 . 1 . . . . Swarmer 22 | . . 11 11 . . . . . . . . . . . . . . Grunt 26 | . 5 7 14 . . . . . . . . . . . . . . Brawler 3 | . . 1 2 . . . . . . . . . . . . . . Sentry 17 | . . 7 10 . . . . . . . . . . . . . . Packrat 1 | . . . . . . . . 1 . . . . . . . . . Samaritan 1 | . . . . . . . . . . . . . . . 1 . . Best Kill Streak 8 | . 3 6 8 2 . 2 . . . 2 1 . 2 . . . . Combat Bots Only 6 | . 2 5 6 . . . . . . . . . . . . . . Max Kills in Single Turn 4 | . 1 2 4 1 . 1 . 1 . 1 1 . 1 . 1 . . Gunslinging . | . . . . . . . . . . . . . . . . . . Exploded 2 | . 1 1 2 . . . . . . . . . . . . . . Melee . | . . . . . . . . . . . . . . . . . . Uniques/NPCs Destroyed . | . . . . . . . . . . . . . . . . . . Combat | -11 -10 -9 -8 -7 -7 -7 -7 -7 -7 -6 -6 -6 -6 -6 -6 -6 -6 -------- Run | Scr Mat Mat Mat Fac Was Fac Low Low Dat Pro Fac Was Fac Low Low Zio Dee Damage Taken 5535 | . 445 1412 2005 113 . 58 . 15 . . . . 30 39 . . 1418 Core 1476 | . 90 205 214 43 . 58 . 15 . . . . 30 25 . . 796 Absorbed by Shields . | . . . . . . . . . . . . . . . . . . Core Remaining (%) 71 | 100 64 48 61 . . . . . . 83 . . . . . . . Volleys Fired 324 | . 26 132 155 . . . . . . . . . . . . 6 5 Largest 2 | . 2 2 2 . . . . . . . . . . . . 1 1 Hottest 91 | . 60 79 91 . . . . . . . . . . . . . 36 Shots Fired 559 | . 52 238 258 . . . . . . . . . . . . 6 5 Gun 398 | . 49 223 126 . . . . . . . . . . . . . . Cannon 110 | . . 10 100 . . . . . . . . . . . . . . Launcher 21 | . 3 5 10 . . . . . . . . . . . . . 3 Special 30 | . . . 22 . . . . . . . . . . . . 6 2 Kinetic 439 | . 40 207 192 . . . . . . . . . . . . . . Thermal 55 | . . . 55 . . . . . . . . . . . . . . Explosive 18 | . 3 5 10 . . . . . . . . . . . . . . Electromagnetic 39 | . 9 26 1 . . . . . . . . . . . . . 3 Robot Hit Streak 20 | . 10 20 11 . . . . . . . . . . . . . 5 Robot Miss Streak 7 | . 3 7 4 . . . . . . . . . . . . . 1 Penetration Max . | . . . . . . . . . . . . . . . . . . Secondary Targets 3 | . 1 2 . . . . . . . . . . . . . . . Max Gunslinging Chain 1 | . 1 1 . . . . . . . . . . . . . . . Shots Hit Robots 416 | . 32 149 166 7 . 18 . 4 . 15 8 . 8 . 1 . 8 Core Hits 203 | . 17 65 95 3 . 9 . 1 . 2 3 . 4 . 1 . 3 Critical Hits 10 | . . . 4 . . 1 . 2 . . . . 3 . . . . Critical Kills 4 | . . . 1 . . 1 . . . . . . 2 . . . . Critical Parts Destroyed 6 | . . . 3 . . . . 2 . . . . 1 . . . . Melee Attacks 242 | . . . . 20 . 47 7 26 . 21 29 . 39 27 15 3 8 Impact . | . . . . . . . . . . . . . . . . . . Slashing 226 | . . . . 20 . 46 7 26 . 8 27 . 39 27 15 3 8 Piercing . | . . . . . . . . . . . . . . . . . . Sneak Attacks 36 | . . . . 5 . 5 . 4 . 14 4 . 3 . 1 . . Combat Hostiles . | . . . . . . . . . . . . . . . . . . Follow-up Attacks . | . . . . . . . . . . . . . . . . . . Damage Inflicted 10383 | . 465 2441 4183 570 . 907 . 381 . 126 352 . 620 . 97 . 241 Guns 3968 | . 327 2001 1640 . . . . . . . . . . . . . . Cannons 1412 | . . 159 1253 . . . . . . . . . . . . . . Explosions 1621 | . 138 281 1144 . . . . . . . . . . . . . 58 Melee 3236 | . . . . 570 . 907 . 381 . 126 352 . 620 . 97 . 183 Ramming . | . . . . . . . . . . . . . . . . . . Kinetic 4421 | . 223 1853 2345 . . . . . . . . . . . . . . Thermal 674 | . . . 674 . . . . . . . . . . . . . . Explosive 1563 | . 138 281 1144 . . . . . . . . . . . . . . Electromagnetic 489 | . 104 307 20 . . . . . . . . . . . . . 58 Impact . | . . . . . . . . . . . . . . . . . . Slashing 3236 | . . . . 570 . 907 . 381 . 126 352 . 620 . 97 . 183 Piercing . | . . . . . . . . . . . . . . . . . . Highest Corruption 8 | . . . 6 . 8 8 8 8 8 8 . 7 7 7 7 7 . Average Corruption 6 | . . . 3 . 8 8 8 8 8 8 . 7 7 7 7 7 . Corruption Purged . | . . . . . . . . . . . . . . . . . . Effects 129 | . . . 35 . 1 21 7 11 1 15 . . 22 10 6 . . Message Errors 27 | . . . 7 . 1 3 2 3 . 4 . . 5 . 2 . . Matter Fused 30 | . . . 10 . . 5 2 1 . 4 . . 7 1 . . . Heat Flow Errors 13 | . . . 1 . . 5 2 . . 4 . . . 1 . . . Energy Discharges 18 | . . . 2 . . 5 . 3 . 1 . . 3 3 1 . . Parts Rejected 1 | . . . . . . . . . . . . . 1 . . . . Data Loss (minor) 15 | . . . 5 . . 1 . 2 . 1 . . 2 4 . . . Data Loss (major) 5 | . . . . . . 1 . 1 1 . . . . . 2 . . Targeting Errors 18 | . . . 8 . . 1 1 1 . 1 . . 4 1 1 . . Weapon Failures 2 | . . . 2 . . . . . . . . . . . . . . Overload Shots . | . . . . . . . . . . . . . . . . . . Overflow Damage 925 | . . 38 44 197 . 165 . 92 . . 151 . 238 . . . . Projectiles . | . . . . . . . . . . . . . . . . . . Explosions 82 | . . 38 44 . . . . . . . . . . . . . . Melee 843 | . . . . 197 . 165 . 92 . . 151 . 238 . . . . Knockbacks 4 | . . . 4 . . . . . . . . . . . . . . Impact . | . . . . . . . . . . . . . . . . . . Kinetic 3 | . . . 3 . . . . . . . . . . . . . . Secondary 1 | . . . 1 . . . . . . . . . . . . . . Self-Inflicted Damage 86 | . . 20 58 . . . . . . . . . . . . . 8 Shots 5 | . . 2 2 . . . . . . . . . . . . . 1 Rammed . | . . . . . . . . . . . . . . . . . . Targets Rammed . | . . . . . . . . . . . . . . . . . . Kicked . | . . . . . . . . . . . . . . . . . . Crushed . | . . . . . . . . . . . . . . . . . . Highest Temperature 294 | . 40 66 276 . . 253 223 . . 196 . . . 294 . . 10 Average Temperature 54 | . 14 12 60 . . 102 108 . . 94 . . . 137 . . 10 Received Heat Transfer 1866 | . 258 453 729 21 . . . 9 . . . . . . . . 396 Effects 1 | . . . 1 . . . . . . . . . . . . . . Energy Bleed 1 | . . . 1 . . . . . . . . . . . . . . Siege Activations . | . . . . . . . . . . . . . . . . . . Robots Corrupted . | . . . . . . . . . . . . . . . . . . Combat Hostiles . | . . . . . . . . . . . . . . . . . . Parts Fried 2 | . 1 1 . . . . . . . . . . . . . . . Impact Corruptions . | . . . . . . . . . . . . . . . . . . Robots Melted . | . . . . . . . . . . . . . . . . . . Combat Hostiles . | . . . . . . . . . . . . . . . . . . Parts Melted 1 | . . . 1 . . . . . . . . . . . . . . Heat Transferred 1369 | . . . 1369 . . . . . . . . . . . . . . Parts Sabotaged . | . . . . . . . . . . . . . . . . . . Parts Stolen . | . . . . . . . . . . . . . . . . . . Parts Stripped . | . . . . . . . . . . . . . . . . . . Power Chain Reactions . | . . . . . . . . . . . . . . . . . . Missiles Intercepted . | . . . . . . . . . . . . . . . . . . Alert | -11 -10 -9 -8 -7 -7 -7 -7 -7 -7 -6 -6 -6 -6 -6 -6 -6 -6 ------- Run | Scr Mat Mat Mat Fac Was Fac Low Low Dat Pro Fac Was Fac Low Low Zio Dee Peak Influence 665 | . 151 391 665 370 204 273 . . . . 505 31 467 . . . . Average Influence 200 | . 33 136 377 321 160 190 . . . . 243 12 140 . . . . Maximum Alert Level 2 | . . 1 2 1 1 1 . . . . 2 . 2 . . . . Low Security (%) 60 | 100 100 69 32 . 82 53 . . . . 46 100 80 . . . . Level 1 19 | . . 30 9 100 17 46 . . . . 20 . . . . . . Level 2 19 | . . . 57 . . . . . . . 32 . 19 . . . . Level 3 . | . . . . . . . . . . . . . . . . . . Level 4 . | . . . . . . . . . . . . . . . . . . Level 5 . | . . . . . . . . . . . . . . . . . . High Security . | . . . . . . . . . . . . . . . . . . Max Security . | . . . . . . . . . . . . . . . . . . Squads Dispatched 16 | . 1 1 6 . . 4 . . . . 2 . 2 . . . . Investigation 3 | . 1 . 1 . . . . . . . . . 1 . . . . Extermination 1 | . . . . . . . . . . . . . 1 . . . . Reinforcement 6 | . . 1 2 . . 3 . . . . . . . . . . . Assault 3 | . . . 1 . . . . . . . 2 . . . . . . Garrison 3 | . . . 2 . . 1 . . . . . . . . . . . Intercept . | . . . . . . . . . . . . . . . . . . Construction Impeded 1 | . . . 1 . . . . . . . . . . . . . . Haulers Reinforced 1 | . . . . . . 1 . . . . . . . . . . . Stealth | -11 -10 -9 -8 -7 -7 -7 -7 -7 -7 -6 -6 -6 -6 -6 -6 -6 -6 --------- Run | Scr Mat Mat Mat Fac Was Fac Low Low Dat Pro Fac Was Fac Low Low Zio Dee Distress Signals 7 | . . 1 4 . . 1 . . . 1 . . . . . . . Communications Jammed . | . . . . . . . . . . . . . . . . . . Distress Signals . | . . . . . . . . . . . . . . . . . . Times Spotted 204 | . 5 43 66 10 5 22 . 4 . 7 11 4 14 . . . 13 Peak Tracking Total 9 | . 2 7 9 8 5 7 . 4 . 3 5 4 5 . . . 9 Tactical Retreats 22 | . . 2 3 2 . 5 . 1 . 2 2 . 4 . . . 1 Traps | -11 -10 -9 -8 -7 -7 -7 -7 -7 -7 -6 -6 -6 -6 -6 -6 -6 -6 ------- Run | Scr Mat Mat Mat Fac Was Fac Low Low Dat Pro Fac Was Fac Low Low Zio Dee Traps Triggered 10 | . . . 4 1 . 2 . . . . 1 . 1 1 . . . Indirectly . | . . . . . . . . . . . . . . . . . . Trap Hack Attempts 1 | . . . . . . 1 . . . . . . . . . . . Triggered . | . . . . . . . . . . . . . . . . . . Disarmed . | . . . . . . . . . . . . . . . . . . Reprogrammed . | . . . . . . . . . . . . . . . . . . Reused . | . . . . . . . . . . . . . . . . . . Traps Extracted . | . . . . . . . . . . . . . . . . . . Installed . | . . . . . . . . . . . . . . . . . . Triggered 8 | . . . . . . . 5 1 . . . . . 2 . . . Machines | -11 -10 -9 -8 -7 -7 -7 -7 -7 -7 -6 -6 -6 -6 -6 -6 -6 -6 ---------- Run | Scr Mat Mat Mat Fac Was Fac Low Low Dat Pro Fac Was Fac Low Low Zio Dee Machines Disabled 12 | . 1 . 6 . . . . . . 1 . . . . 1 . 3 Max in Single Turn 2 | . 1 . 2 . . . . . . 1 . . . . 1 . 1 Garrison Access 4 | . . . 1 . . 1 . . . . 1 . 1 . . . . Machines Sabotaged . | . . . . . . . . . . . . . . . . . . Garrisons Compromised . | . . . . . . . . . . . . . . . . . . Overloaded Fab Kills . | . . . . . . . . . . . . . . . . . . Fab Network Shutdowns 2 | . . . . . . . . . . . 1 . 1 . . . . Hacking | -11 -10 -9 -8 -7 -7 -7 -7 -7 -7 -6 -6 -6 -6 -6 -6 -6 -6 --------- Run | Scr Mat Mat Mat Fac Was Fac Low Low Dat Pro Fac Was Fac Low Low Zio Dee Machines Accessed 54 | . 6 4 6 2 . 11 . . 4 2 11 . 7 1 . . . Terminals 37 | . 6 4 5 1 . 7 . . . 1 9 . 4 . . . . Fabricators 6 | . . . . 1 . 1 . . . 1 1 . 2 . . . . Repair Stations . | . . . . . . . . . . . . . . . . . . Recycling Units . | . . . . . . . . . . . . . . . . . . Scanalyzers . | . . . . . . . . . . . . . . . . . . Garrison Access 6 | . . . 1 . . 3 . . . . 1 . 1 . . . . Total Hacks 144 | . 13 7 13 2 . 16 . . 26 7 35 . 24 1 . . . Successful 99 | . 10 3 6 . . 6 . . 26 4 26 . 17 1 . . . Failed 45 | . 3 4 7 2 . 10 . . . 3 9 . 7 . . . . Catastrophic 8 | . . . 1 1 . 5 . . . . 1 . . . . . . Database Lockouts . | . . . . . . . . . . . . . . . . . . Manual 41 | . 2 2 2 . . 5 . . . 2 13 . 14 . 1 . . Terminals 91 | . 13 7 11 1 . 10 . . . 3 32 . 14 . . . . Fabricators 17 | . . . . 1 . 1 . . . 4 2 . 9 . . . . Repair Stations . | . . . . . . . . . . . . . . . . . . Recycling Units . | . . . . . . . . . . . . . . . . . . Scanalyzers . | . . . . . . . . . . . . . . . . . . Garrison Access 9 | . . . 2 . . 5 . . . . 1 . 1 . . . . Terminal Hacks 76 | . 9 3 5 . . 4 . . 26 2 18 . 8 1 . . . Record 11 | . . . . . . . . . 11 . . . . . . . . Part Schematic 12 | . . . . . . . . . 8 1 2 . 1 . . . . Robot Schematic 4 | . . . . . . . . . 4 . . . . . . . . Prototype ID Bank 8 | . 1 . 1 . . 1 . . 3 . 1 . 1 . . . . Open Door 2 | . . . . . . . . . . 1 . . . 1 . . . Branch Access Points 3 | . 1 . . . . . . . . . 1 . 1 . . . . Machine Index 1 | . . . . . . . . . . . 1 . . . . . . Terminal Index 2 | . . 1 1 . . . . . . . . . . . . . . Fabricator Index 2 | . . . . . . . . . . . 1 . 1 . . . . Scanalyzer Index 1 | . . . . . . 1 . . . . . . . . . . . Alert Level 2 | . . . 1 . . . . . . . 1 . . . . . . Unreport Threat 5 | . . 1 1 . . . . . . . 3 . . . . . . Locate Traps 13 | . 4 1 . . . 1 . . . . 4 . 3 . . . . Recall Extermination 1 | . . . . . . . . . . . . . 1 . . . . Recall Reinforcements 2 | . . . . . . 1 . . . . 1 . . . . . . Recall Assault 1 | . . . . . . . . . . . 1 . . . . . . Zone Layout 6 | . 3 . 1 . . . . . . . 2 . . . . . . Fabricator Hacks 9 | . . . . . . 1 . . . 2 2 . 4 . . . . Network Status 1 | . . . . . . 1 . . . . . . . . . . . Load Schematic 4 | . . . . . . . . . . 1 1 . 2 . . . . Build 4 | . . . . . . . . . . 1 1 . 2 . . . . Repair Station Hacks . | . . . . . . . . . . . . . . . . . . Recycling Unit Hacks . | . . . . . . . . . . . . . . . . . . Scanalyzer . | . . . . . . . . . . . . . . . . . . Garrison Access Hacks 4 | . . . 1 . . 1 . . . . 1 . 1 . . . . Seal Access 4 | . . . 1 . . 1 . . . . 1 . 1 . . . . Unauthorized Hacks 23 | . 3 . . . . . . . . . 10 . 10 . . . . Terminals 7 | . 1 . . . . . . . . . 5 . 1 . . . . Track 2 | . . . . . . . . . . . 2 . . . . . . Botnet 5 | . 1 . . . . . . . . . 3 . 1 . . . . Fabricators 3 | . . . . . . . . . . . . . 3 . . . . Prioritize 1 | . . . . . . . . . . . . . 1 . . . . Siphon 2 | . . . . . . . . . . . . . 2 . . . . Repair Stations . | . . . . . . . . . . . . . . . . . . Recycling Units . | . . . . . . . . . . . . . . . . . . Scanalyzers . | . . . . . . . . . . . . . . . . . . Garrison Access . | . . . . . . . . . . . . . . . . . . Data Cores Recovered 2 | . . . . . . 1 . . . . . . 1 . . . . Used 1 | . . . . . . . . . . . . . 1 . . . . Hacking Detections 37 | . 4 3 5 1 . 8 . . . 2 9 . 5 . . . . Full Trace Events 1 | . . . . . . . . . . 1 . . . . . . . Feedback Events . | . . . . . . . . . . . . . . . . . . Feedback Blocked . | . . . . . . . . . . . . . . . . . . Robot Schematics Acquired 4 | . . . . . . . . . 4 . . . . . . . . Robots Built . | . . . . . . . . . . . . . . . . . . Matter . | . . . . . . . . . . . . . . . . . . Time . | . . . . . . . . . . . . . . . . . . Total Robot Build Rating . | . . . . . . . . . . . . . . . . . . Part Schematics Acquired 12 | . . . . . . . . . 8 1 2 . 1 . . . . Parts Built 3 | . . . . . . . . . . . 1 . 2 . . . . Matter 793 | . . . . . . . . . . . 190 . 603 . . . . Time 331 | . . . . . . . . . . . 95 . 236 . . . . Total Part Build Rating 16 | . . . . . . . . . . . 5 . 11 . . . . Parts Repaired . | . . . . . . . . . . . . . . . . . . Time . | . . . . . . . . . . . . . . . . . . Parts Recycled . | . . . . . . . . . . . . . . . . . . Recycled Matter . | . . . . . . . . . . . . . . . . . . Retrieved Matter . | . . . . . . . . . . . . . . . . . . Retrieved Components . | . . . . . . . . . . . . . . . . . . Parts Scanalyzed . | . . . . . . . . . . . . . . . . . . Part Schematics Acquired . | . . . . . . . . . . . . . . . . . . Parts Damaged . | . . . . . . . . . . . . . . . . . . Bothacking | -11 -10 -9 -8 -7 -7 -7 -7 -7 -7 -6 -6 -6 -6 -6 -6 -6 -6 ------------ Run | Scr Mat Mat Mat Fac Was Fac Low Low Dat Pro Fac Was Fac Low Low Zio Dee Used RIF Installer . | . . . . . . . . . . . . . . . . . . Robots Hacked 2 | . . . . . . . . . . . 2 . . . . . . Non-combat 2 | . . . . . . . . . . . 2 . . . . . . Combat . | . . . . . . . . . . . . . . . . . . Robot Hacks Applied 2 | . . . . . . . . . . . 2 . . . . . . find_chute 2 | . . . . . . . . . . . 2 . . . . . . Relay Couplers Released . | . . . . . . . . . . . . . . . . . . Robots Rewired 11 | . . . . . . . . . . 11 . . . . . . . Allies Hacked . | . . . . . . . . . . . . . . . . . . Hacks Repelled . | . . . . . . . . . . . . . . . . . . Allies | -11 -10 -9 -8 -7 -7 -7 -7 -7 -7 -6 -6 -6 -6 -6 -6 -6 -6 -------- Run | Scr Mat Mat Mat Fac Was Fac Low Low Dat Pro Fac Was Fac Low Low Zio Dee Total Allies 19 | . . . . . . . . . . 12 . . . . . 7 . Largest Group 7 | . . . . . . . . . . 7 . . . . . 7 7 Highest-Rated Group 256 | . . . . . . . . . . 256 . . . . . 199 199 Highest-Rated Ally 94 | . . . . . . . . . . 94 . . . . . 31 31 Total Orders . | . . . . . . . . . . . . . . . . . . Ally Attacks 62 | . . . . . . . . . . 37 . . . . . . 25 Total Damage 4734 | . . . . . . . . . . 979 . . . . . . 3755 Kills 21 | . . . . . . . . . . 10 . . . . . . 11 Allies Corrupted . | . . . . . . . . . . . . . . . . . . Allies Melted . | . . . . . . . . . . . . . . . . . . Intel | -11 -10 -9 -8 -7 -7 -7 -7 -7 -7 -6 -6 -6 -6 -6 -6 -6 -6 ------- Run | Scr Mat Mat Mat Fac Was Fac Low Low Dat Pro Fac Was Fac Low Low Zio Dee Robot Analysis Total . | . . . . . . . . . . . . . . . . . . Derelict Logs Recovered 6 | . . . . . . . 2 . . 1 . . . . . 3 . Drone Launches . | . . . . . . . . . . . . . . . . . . Drone Recoveries . | . . . . . . . . . . . . . . . . . . Exploration | -11 -10 -9 -8 -7 -7 -7 -7 -7 -7 -6 -6 -6 -6 -6 -6 -6 -6 ------------- Run | Scr Mat Mat Mat Fac Was Fac Low Low Dat Pro Fac Was Fac Low Low Zio Dee Turns Passed 8898 | 56 1122 1676 1716 210 23 739 162 274 25 445 616 23 624 302 199 410 276 Spaces Moved 11393 | 44 696 943 921 378 70 1806 451 652 79 702 1118 70 1217 402 479 964 401 Core 38 | 23 . . . . . . . . . . . . . . . . 15 Treads 254 | . . 254 . . . . . . . . . . . . . . . Legs 717 | 21 696 . . . . . . . . . . . . . . . . Wheels 1610 | . . 689 921 . . . . . . . . . . . . . . Hover . | . . . . . . . . . . . . . . . . . . Flight 8774 | . . . . 378 70 1806 451 652 79 702 1118 70 1217 402 479 964 386 Fastest Speed 25 | 50 120 100 100 32 32 32 32 32 32 32 32 32 27 27 27 27 25 Average Speed 53 | 98 147 124 123 32 32 32 32 32 32 32 32 32 30 27 27 27 29 Slowest Speed 250 | 150 150 180 160 35 32 32 32 32 32 32 32 32 32 27 27 27 250 Overloaded Moves . | . . . . . . . . . . . . . . . . . . Propulsion Burnouts . | . . . . . . . . . . . . . . . . . . Robots Hopped 5 | . . . . 2 . . . . . . 1 . 2 . . . . Cave-ins Triggered . | . . . . . . . . . . . . . . . . . . Exploration Rate (%) 59 | 3 98 71 85 12 79 49 61 81 74 64 36 76 26 58 60 86 51 Regions Visited 17 Branch Regions 8 Pre-discovered Areas 2 | . . . . . . . . . 1 . . . . . . 1 . Known Exits Taken 9 | . . . . . . 1 1 1 1 1 . . 1 1 1 1 . Unknown Exits Taken 4 | 1 1 1 1 . . . . . . . . . . . . . . Scrap Searched 20 | . . . . . . . 1 1 . 2 . . . . 13 3 . Spaces Dug 161 | . . . . 11 . 28 7 22 . 5 18 . 28 27 13 2 . Terrain Destroyed 289 | . 15 43 70 11 . 28 7 22 . 5 18 . 28 27 13 2 . Melee 161 | . . . . 11 . 28 7 22 . 5 18 . 28 27 13 2 . Projectile 4 | . . . 4 . . . . . . . . . . . . . . AOE 124 | . 15 43 66 . . . . . . . . . . . . . . Actions | -11 -10 -9 -8 -7 -7 -7 -7 -7 -7 -6 -6 -6 -6 -6 -6 -6 -6 --------- Run | Scr Mat Mat Mat Fac Was Fac Low Low Dat Pro Fac Was Fac Low Low Zio Dee Total 13297 | 55 748 1233 1214 445 69 1895 457 677 78 897 1331 69 1411 552 525 1098 543 Wait 1006 | . . 87 66 5 . . . . . 173 179 . 148 117 15 106 110 Move 11368 | 43 695 942 920 374 69 1805 450 651 78 701 1116 69 1212 401 478 963 401 Hop 5 | . . . . 2 . . . . . . 1 . 2 . . . . Pick Up 81 | 5 14 27 24 1 . 3 . . . 1 . . 1 1 1 1 2 Fast Attach 53 | 3 2 3 6 6 . 10 . . . . 4 . 3 2 5 6 3 Attach 50 | 3 2 17 11 7 . . . . . . . . . 1 1 3 5 Detach 8 | . . 2 . 2 . . . . . . . . . . 1 3 . Swap 41 | 1 3 8 20 . . 2 . . . . . . 2 2 2 . 1 Drop 100 | . 6 15 12 28 . 9 . . . 1 2 . 4 1 7 7 8 Fire 324 | . 26 132 155 . . . . . . . . . . . . 6 5 Melee 242 | . . . . 20 . 47 7 26 . 21 29 . 39 27 15 3 8 Ram . | . . . . . . . . . . . . . . . . . . Kick . | . . . . . . . . . . . . . . . . . . Crush . | . . . . . . . . . . . . . . . . . . Escape Stasis 18 | . . . . . . 18 . . . . . . . . . . . Rewire . | . . . . . . . . . . . . . . . . . . Trap 1 | . . . . . . 1 . . . . . . . . . . . Miscellaneous . | . . . . . . . . . . . . . . . . . . Route ------- -11/Scrapyard -10/Materials (discovered 4 exits: *Mat x3 / *Min) -9/Materials (discovered 4 exits: *Mat x2 / [*Min] / [*Sto]) -8/Materials (discovered 2 exits: *Fac x2) -7/Factory -7/Waste -7/Factory (discovered 4 exits: *Fac x3 / *Low) -7/Lower Caves -7/Lower Caves -7/Data Miner -6/Proximity Caves -6/Factory (discovered 2 exits: *Low x2) -6/Waste -6/Factory (discovered 2 exits: *Low x2) -6/Lower Caves -6/Lower Caves -6/Zion (discovered 2 exits: *Dee / [*Pro]) -6/Deep Caves History --------- Turn | Location | Event 5 | -11/Scrapyard | Discovered new exit (range 16) 57 | -11/Scrapyard | Entered Materials 103 | -10/Materials | Identified exit to Mines 307 | -10/Materials | Build established: Mutant 385 | -10/Materials | Discovered new exit (range 15) 629 | -10/Materials | Discovered new exit (range 15) 830 | -10/Materials | Discovered new exit (range 8) 1179 | -10/Materials | Entered another Materials area 1179 | -9/Materials | Evolved 2 slots: Utility x2 1484 | -9/Materials | Build established: Hauler-Mutant 1577 | -9/Materials | Lost 3 parts (1p2w) 1917 | -9/Materials | Discovered new exit (range 7) 2345 | -9/Materials | Discovered new exit (range 16) 2513 | -9/Materials | Discovered new exit (range 15) 2578 | -9/Materials | Core integrity fell below 50% 2780 | -9/Materials | Discovered new exit (range 14) 2855 | -9/Materials | Entered another Materials area 2855 | -8/Materials | Evolved 2 slots: Utility x2 3514 | -8/Materials | Garrison activated, responded to threat 3776 | -8/Materials | Discovered new exit (range 5) 4019 | -8/Materials | Garrison activated, responded to threat 4169 | -8/Materials | Lost 3 parts (2n1w) 4390 | -8/Materials | Lost 5 parts (2p1n2w) 4455 | -8/Materials | First assault squad dispatched 4541 | -8/Materials | Discovered new exit (range 16) 4571 | -8/Materials | Entered Factory 4571 | -7/Factory | Evolved 2 slots: Utility x2 4725 | -7/Factory | Discovered new exit (range 16) 4781 | -7/Factory | Manually triggered Chute Trap 4781 | -7/Factory | Sucked down chute 4781 | -7/Factory | Entered Waste 4787 | -7/Waste | Spotted C-40 Crusher 4790 | -7/Waste | Spotted C-40 Crusher 4793 | -7/Waste | Spotted C-40 Crusher 4796 | -7/Waste | EMP discharged 4796 | -7/Waste | Spotted C-40 Crusher 4797 | -7/Waste | Spotted C-40 Crusher 4799 | -7/Waste | Discovered new exit (range 12) 4804 | -7/Waste | Entered Factory 4839 | -7/Factory | Discovered new exit (range 15) 4887 | -7/Factory | Build established: Sprinter 5074 | -7/Factory | Discovered new exit (range 4) 5093 | -7/Factory | Discovered new exit (range 25) 5214 | -7/Factory | Discovered new exit (range 8) 5216 | -7/Factory | Identified exit to Factory 5355 | -7/Factory | Garrison activated, responded to threat 5493 | -7/Factory | Build established: Hacker-Scout 5543 | -7/Factory | Identified exit to Lower Caves 5543 | -7/Factory | Entered Lower Caves 5548 | -7/Lower Caves | Identified exit to Lower Caves 5623 | -7/Lower Caves | Encountered a Warlord checkpoint 5651 | -7/Lower Caves | Spotted B-75 Beast 5657 | -7/Lower Caves | Learned location of 1 exit from Proximity Caves 5705 | -7/Lower Caves | Entered another Lower Caves area 5785 | -7/Lower Caves | Spotted B-75 Beast 5975 | -7/Lower Caves | Discovered new exit (range 9) 5979 | -7/Lower Caves | Identified exit to Data Miner 5979 | -7/Lower Caves | Entered Data Miner 5979 | -7/Data Miner | Discovered new exit (range 6) 5984 | -7/Data Miner | Met Data Miner 5991 | -7/Data Miner | Learned location of Section 7 (-2) 5991 | -7/Data Miner | Acquired the access code to Warlord's prototype stash 5997 | -7/Data Miner | Received God Mode back door access code from Data Miner 6004 | -7/Data Miner | Identified exit to Proximity Caves 6004 | -7/Data Miner | Entered Proximity Caves 6037 | -6/Proximity Caves | Escorted by Enhanced Grunt 6126 | -6/Proximity Caves | Learned location of 1 exit from Proximity Caves 6193 | -6/Proximity Caves | Snuck into a huge 0b10 base via the rear entrance 6283 | -6/Proximity Caves | Derelicts attacked a huge 0b10 base 6449 | -6/Proximity Caves | Entered Factory 6449 | -6/Factory | Evolved 2 slots: Utility x2 6551 | -6/Factory | Discovered new exit (range 9) 6553 | -6/Factory | Identified exit to Lower Caves 6648 | -6/Factory | Local fabrication network quarantined 6658 | -6/Factory | Fabricated Imp. Hacking Suite (x1) 6799 | -6/Factory | First assault squad dispatched 6818 | -6/Factory | Incoming assault squad redirected 6906 | -6/Factory | Spotted B-75 Beast 7065 | -6/Factory | Manually triggered Chute Trap 7065 | -6/Factory | Sucked down chute 7065 | -6/Factory | Entered Waste 7069 | -6/Waste | Spotted C-40 Crusher 7075 | -6/Waste | Spotted C-40 Crusher 7076 | -6/Waste | Spotted C-40 Crusher 7076 | -6/Waste | Spotted C-40 Crusher 7080 | -6/Waste | EMP discharged 7080 | -6/Waste | Spotted C-40 Crusher 7084 | -6/Waste | Spotted C-40 Crusher 7085 | -6/Waste | Discovered new exit (range 10) 7087 | -6/Waste | Identified exit to Factory 7088 | -6/Waste | Entered Factory 7169 | -6/Factory | Build established: Wizard-Scout 7353 | -6/Factory | Discovered exit to Lower Caves (range 6) 7493 | -6/Factory | Fabricated Exp. Cesium-ion Thruster? 7527 | -6/Factory | Fabricated Exp. Sensor Array? 7592 | -6/Factory | Local fabrication network quarantined 7712 | -6/Factory | Entered Lower Caves 7985 | -6/Lower Caves | Discovered new exit (range 19) 7992 | -6/Lower Caves | Found Alien Artifact 7992 | -6/Lower Caves | Identified Core Expander 7992 | -6/Lower Caves | Installed Core Expander, added new Weapon slot 8004 | -6/Lower Caves | Identified exit to Lower Caves 8014 | -6/Lower Caves | Entered another Lower Caves area 8059 | -6/Lower Caves | Encountered a Warlord checkpoint 8156 | -6/Lower Caves | Discovered new exit (range 15) 8198 | -6/Lower Caves | Acquired the password to a Derelict Tinkerer's latest research 8201 | -6/Lower Caves | Found Prototype Special Weapon 8206 | -6/Lower Caves | Identified exit to Zion 8208 | -6/Lower Caves | Identified Molecular Deconstructor 8213 | -6/Lower Caves | Entered Zion 8225 | -6/Zion | System corruption cleaned by Quarantine Array 8235 | -6/Zion | Gained Derelict followers 8245 | -6/Zion | Discovered new exit (range 22) 8277 | -6/Zion | Learned Factory trap positions 8309 | -6/Zion | Gained Derelict followers 8421 | -6/Zion | Learned 8 Factory zone layouts 8423 | -6/Zion | Learned Factory machine intel 8446 | -6/Zion | Acquired unknown access codes intercepted by a Zionite 8559 | -6/Zion | Discovered new exit (range 12) 8581 | -6/Zion | Saw the warning signs outside the Deep Caves entrance 8581 | -6/Zion | Identified exit to Deep Caves 8623 | -6/Zion | Entered Deep Caves 8623 | -6/Deep Caves | Accompanied by 7 allies 8814 | -6/Deep Caves | Z-Facility disabled 8832 | -6/Deep Caves | Attacked by Z-Imprinter 8883 | -6/Deep Caves | Core integrity fell below 50% 8893 | -6/Deep Caves | Core integrity fell below 20% 8899 | -6/Deep Caves | Destroyed by Z-Imprinter with Zionite Laser-M Last Messages --------------- 08834_ MJ-B9P(i) destroyed. 08835_ Wall disintegrates. 08840_ LV-Z8G(i) destroyed. 08841_ Entropy package works its way towards Z-Imprinter core. 08843_ Z-Imprinter core destabilizing. 08844_ Dropped Molecular Deconstructor. 08845_ Z-Imprinter core destabilizing. 08847_ Z-Imprinter core entropy levels peaking. 08847_ Hacking Suite destroyed. 08849_ Acquired Power Sword. 08849_ Mic. Nuclear Core destroyed. 08850_ Imp. VTOL Module destroyed. 08851_ Imp. Hacking Suite destroyed. 08854_ Mak. System Shield destroyed. 08854_ Exp. Sensor Array destroyed. 08879_ Mic. Nuclear Core destroyed. 08889_ Exp. Cesium-ion Thruster destroyed. 08892_ Power Sword destroyed. 08894_ Shock Bomb Launcher destroyed. 08899_ Imp. Hacking Suite destroyed. Map ----- +----------------------------------------------------+ | | | | | | | | | | | | | | | | | | | | | ?????????????????????????????????????????????????? | | ?????????????????????????? ??????????????????????? | | ?????????????????????????# ??????????????????????? | | ?????????????????????????# ??????????????????????? | | ?????????????????????????# ###???####?####? ?????? | | ????????????????????????? #### zz## z#? ## ?? | | ????????????????????????? #z ##z ## ? | | ????????????????????????? z ? | | ????????????????????????? ? | | ?????????????????????????? ? | | ?????????????????????????## ? | | ?????????????????????????# ""? | | ??????????????????????#### """ | | ?????????????????????## # """ | | ?????????????????????# """ | | ?????????????????????#![;@ """ | | ?????????????????????####; """ | | ????????????????????????#; " | | ????????????????????????# " | | ??????????????????????#### | | ??????????????????????#""" | | ????????????????????### " z | | ????????????????????#" | | ????????????????????## | | ?????????????????????# I | | ?????????????????????## z | | ??????????????????????#"" | | ??????????????????????##" | | ???????????????????????### | | ????????????????????????#" | | ????????????????????????#"" | | ???????????????????????? ## | | ??????????????????????? ?# | | ?????????????????????? ?# | | ?????????????????????# ? | | ????????????????????? | | ???????????????????? | | ??????????????????? | | ?????????????????? | | ????????????????? # | +----------------------------------------------------+ Best States ------------- Heat Dissipation 37 Energy Generation 15 Energy Capacity 275 Matter Stores 300 Matter Capacity 300 Sight Range 26 Robot Scan Range 30 Terrain Scan Density 10 Additional Mass Support 18 Armor Coverage 450 Resistance: KI 30 Evasion (%) 65 Melee Accuracy 8 Recoil Reduction 2 Offensive Hacking 55 Defensive Hacking 21 Item Schematics ----------------- Combat Drone Bay | -7/Data Miner | Free Lgt. Regenerative Plating | -7/Data Miner | Free Cmb. Gravmag System | -7/Data Miner | Free Exp. Terrain Scan Processor | -7/Data Miner | Free Tactical Coordination Suite | -7/Data Miner | Free Exp. Transmission Jammer | -7/Data Miner | Free Plasma Sword | -7/Data Miner | Free Kinetic Spear | -7/Data Miner | Free Imp. Hacking Suite | -6/Proximity Caves | Hacked Exp. Sensor Array | -6/Factory | Hacked Imp. System Restoration Module | -6/Factory | Hacked Exp. Cesium-ion Thruster | -6/Factory | Hacked Robot Schematics ------------------ S-27 Virus | -7/Data Miner | Free G-50 Soldier | -7/Data Miner | Free G-67 Veteran | -7/Data Miner | Free I-36 Angel | -7/Data Miner | Free Fabricated ------------ Imp. Hacking Suite | x1 | -6/Factory Exp. Cesium-ion Thruster | x1 | -6/Factory Exp. Sensor Array | x1 | -6/Factory Alien Tech Used ----------------- Core Expander Achievements -------------- None Challenges ------------ None Game ------ Seed RelayPowerRifle Manual? 0 Play Time 01:59:05 Cumulative 654.5 hours Start 2020.02.16 @ 15:43:12 End 2020.02.16 @ 17:46:57 Sessions 1 Manual Loads 0 Difficulty Rogue Special Mode None Game No. 363 Rogue 363 Adventurer 0 Explorer 0 Win Type - Total 52 Types 29/2/12/5/1/1/2 Lore% 89 Gallery% 85 Achievement% 71 Wizard Run 0 Options --------- ASCII 0 Keyboard 0 Movement Mouse Keybinds 0 Fullscreen 0 Font 32/SmallcapsGlow Map View 76x50 Tactical HUD 1 Map Filters NONE Filters NONE Steam 0 RUN: b5ee957c-0684-4b54-9ab0-3b08d0ffd4df